Cogmind - Beta 15 @@@ ROGUE MODE // 2025.06.22 @ 21:53:31 Player: erfael Result: Destroyed by Y-54 Guardian with Gatling Laser Performance ------------- Evolutions (4) 2000 Regions Visited (7) 1400 Robots Destroyed (48) 240 Value Destroyed (1513) 1513 Prototype IDs (1) 20 Alien Tech Used (0) 0 Bonus (767) 767 TOTAL SCORE: 5940 Bonus ------- Follower Combat Kills 176 Met Imprinter 300 Was Imprinted 300 Friendly Fire -9 Cogmind --------- Core Integrity 0/850 Matter 54/300 Energy 126/240 System Corruption 16% Temperature Cool (18) Movement Core (150) Ox2 Location -6/Factory Parts ------- > --- POWER (2) -------- Nuclear Core > --- PROPULSION (4) --- (None) > --- UTILITY (6) ------ Improved Signal Interpreter Focal Shield > --- WEAPON (3) ------- (None) > --- INVENTORY (5) ---- Light Nuclear Core Light Treads Matter Compressor (0) Target Analyzer Makeshift ECM Suite Peak State ------------ > --- POWER ------------ Angular Momentum Engine Angular Momentum Engine > --- PROPULSION ------- Armored Treads Medium Treads Medium Treads Spiked Medium Treads > --- UTILITY ---------- Large Storage Unit Experimental Sensor Array 0b10 Decoder Chip [Generic] Weapon Cycler Hardened Medium Armor Plating Hardlight Generator > --- WEAPON ----------- Heavy Battle Rifle Heavy Missile Launcher Plasma Flamer > --- INVENTORY -------- Light Ion Engine Light Nuclear Core Light Treads Medium Treads Large Storage Unit Matter Compressor Weight Redist. System 0b10 Decoder Chip [Skirmisher] Target Analyzer Makeshift ECM Suite Improved Utility Shielding Improved Light Armor Plating Arc Projector Rocket Launcher [Rating: 68] Favorites ----------- Power Ion Engine Engine Ion Engine Power Core Light Nuclear Core Propulsion Light Treads Treads Light Treads Utility Large Storage Unit Device Seismic Detector Storage Large Storage Unit Processor Signal Interpreter Protection Light Armor Plating Weapon Light Assault Rifle Energy Gun Medium Laser Ballistic Gun Light Assault Rifle Ballistic Cannon Battle Cannon Launcher Heavy Missile Launcher Special Weapon Plasma Flamer Build | -11 -10 -10 -9 -9 -7 -6 -6 ------- Run | Yrd Mat Min Mat Min Zio Pro Fac Slots Evolved 8 | . . . 2 . . . 6 Power 1 | . . . . . . . 1 Propulsion 2 | . . . . . . . 2 Utility 4 | . . . 2 . . . 2 Weapon 1 | . . . . . . . 1 Parts Attached 46 | 7 4 . 9 1 . 12 13 Power 9 | 1 3 . 1 . . . 4 Engine 7 | 1 3 . 1 . . . 2 Core 2 | . . . . . . . 2 Reactor . | . . . . . . . . Propulsion 8 | 2 . . 1 . . 4 1 Treads 8 | 2 . . 1 . . 4 1 Leg . | . . . . . . . . Wheel . | . . . . . . . . Hover . | . . . . . . . . Flight . | . . . . . . . . Utility 17 | 2 1 . 3 . . 4 7 Device 7 | 1 . . 1 . . 2 3 Storage 3 | 1 1 . . . . . 1 Processor 3 | . . . . . . 1 2 Hackware . | . . . . . . . . Protection 4 | . . . 2 . . 1 1 Artifact . | . . . . . . . . Weapon 12 | 2 . . 4 1 . 4 1 Energy Gun 2 | 1 . . . . . . 1 Energy Cannon . | . . . . . . . . Ballistic Gun 6 | 1 . . 3 1 . 1 . Ballistic Cannon 1 | . . . . . . 1 . Launcher 2 | . . . 1 . . 1 . Special Weapon 1 | . . . . . . 1 . Impact Weapon . | . . . . . . . . Slashing Weapon . | . . . . . . . . Piercing Weapon . | . . . . . . . . Special Melee Weapon . | . . . . . . . . Unidentified Prototypes . | . . . . . . . . Parts Lost 33 | . 2 . 6 . . 9 16 Power 6 | . 2 . 1 . . 1 2 Propulsion 8 | . . . 1 . . 2 5 Utility 8 | . . . 1 . . 3 4 Weapon 11 | . . . 3 . . 3 5 Highest Loss Streak 13 | . 1 . 5 . . 5 13 To Critical Strikes 1 | . . . . . . . 1 Average Backups 12 | 4 7 10 11 10 13 14 12 Power 1 | . . 1 1 1 1 1 1 Propulsion 2 | 3 3 3 2 2 2 3 1 Utility 4 | . 1 3 3 4 4 5 7 Weapon 3 | . 1 2 4 3 5 4 1 Tool/Special . | . . . . . . . . Unused Backups 12 | . 3 . . . 2 1 6 Power . | . . . . . . . . Propulsion 5 | . 3 . . . . 1 1 Utility 6 | . . . . . 1 . 5 Weapon 1 | . . . . . 1 . . Tool/Special . | . . . . . . . . Average Slot Usage (%) 97 | . 99 100 94 100 100 96 93 Engine 11 | . 14 14 11 11 11 10 10 Treads 23 | . 27 28 21 22 22 21 24 Device 18 | . 14 14 19 22 22 19 17 Storage 10 | . 14 14 11 11 11 11 6 Processor 1 | . . . . . . 5 5 Protection 6 | . . . 9 11 11 6 5 Energy Gun 3 | . 14 14 7 . . . . Ballistic Gun 14 | . 14 14 11 18 22 11 5 Launcher 1 | . . . 1 3 . 4 5 Special Weapon 1 | . . . . . . 1 5 Peak Build Rating 68 | 7 7 9 13 12 13 31 68 Average Rating 20 | 5 6 8 10 11 12 20 57 On Entrance 11 | . 7 7 9 11 11 13 31 Naked Turns 17 | . . . . . . . 17 Heaviest Build 75 | 13 28 28 38 35 32 37 75 Greatest Support 110 | 40 40 40 40 40 40 56 110 Greatest Overweight (x) 2 | . . . . . . . 2 Average Overweight (x) . | . . . . . . . . Largest Inventory Capacity 15 | 8 15 15 15 15 15 15 15 Average Capacity 13 | 7 8 15 15 15 15 15 14 Most Carried 15 | 6 9 11 13 11 15 15 15 Average Carried 12 | 4 7 10 11 10 13 14 12 Final Capacity 15 | 8 15 15 15 15 15 15 5 Final Carried 15 | 6 9 11 10 11 15 14 5 Class Distribution -------------------- 77% | Mutant 13% | Derelict-Tank 5% | Scavenger-Mutant 3% | Derelict-Mutant Dominant Class ---------------- Mutant | -10/Materials Mutant | -10/Mines Mutant | -9/Materials Mutant | -9/Mines Mutant | -7/Zion Mutant | -6/Proximity Caves Derelict-Tank | -6/Factory Resources | -11 -10 -10 -9 -9 -7 -6 -6 ----------- Run | Yrd Mat Min Mat Min Zio Pro Fac Matter Collected 1325 | 246 175 65 94 185 104 328 128 Remotely . | . . . . . . . . Salvage Created 1097 | 60 272 43 138 72 . 276 236 Parts 77 | 6 17 8 16 5 . 9 16 Haulers Intercepted . | . . . . . . . . Recyclers Shooed 1 | . . . . 1 . . . Parts Field Recycled . | . . . . . . . . Retrieved Matter . | . . . . . . . . Parts Self-Destructed 18 | . . . . . 1 17 . Prevented 5 | . . . . . . 5 . Kills | -11 -10 -10 -9 -9 -7 -6 -6 ------- Run | Yrd Mat Min Mat Min Zio Pro Fac Combat Hostiles Destroyed 42 | . 9 3 7 4 . 9 10 Guns 20 | . 9 3 4 . . 2 2 Cannons 7 | . . . . . . 3 4 AOE 14 | . . . 3 4 . 4 3 Classes Destroyed 9 | 1 4 . 2 . . . 2 Builder 1 | . . . . . . . 1 Tunneler 3 | 3 . . . . . . . Operator 1 | . 1 . . . . . . Watcher 1 | . 1 . . . . . . Swarmer 17 | . 6 3 3 . . 1 4 Grunt 17 | . 3 . 1 4 . 6 3 Duelist 2 | . . . 1 . . 1 . Sentry 4 | . . . 2 . . 1 1 Programmer 2 | . . . . . . . 2 Best Kill Streak 5 | 2 4 3 3 4 . 3 5 Combat Bots Only 5 | . 4 3 3 4 . 3 5 Max Kills in Single Turn 2 | 1 1 1 2 1 . 1 2 Gunslinging . | . . . . . . . . Exploded 2 | . . . 2 1 . 1 2 Melee . | . . . . . . . . Uniques/NPCs Destroyed . | . . . . . . . . Combat | -11 -10 -10 -9 -9 -7 -6 -6 -------- Run | Yrd Mat Min Mat Min Zio Pro Fac Hostile Shots Fired 559 | . 62 9 41 10 . 124 313 Missed 192 | . 11 5 12 3 . 39 122 Hits 367 | . 51 4 29 7 . 85 191 Melee 12 | . . . 5 . . . 7 Projectile 355 | . 51 4 24 7 . 85 184 AOE 2 | . . . 2 . . . . Critical Strikes 9 | . 1 . 2 1 . 3 2 Damage Taken 4984 | . 512 48 732 107 . 1338 2247 Core 1285 | . 68 . 90 18 . 255 854 Absorbed by Shields 220 | . . . . . . . 220 Ignored by Resistances 50 | . . . . . . . 50 Regen/Repaired (Parts) 304 | . 228 . . . 76 . . Core Remaining (%) 60 | 100 . 72 . . . 9 . Volleys Fired 175 | 10 34 8 32 6 . 47 38 Largest 2 | 2 2 2 2 2 . 2 2 Hottest 133 | 70 70 70 70 53 . 72 133 Shots Fired 310 | 20 67 16 59 12 . 80 56 Gun 228 | 20 67 16 51 6 . 47 21 Cannon 20 | . . . . . . 20 . Launcher 34 | . . . 8 6 . 13 7 Special 28 | . . . . . . . 28 Kinetic 176 | 10 34 8 31 6 . 67 20 Thermal 99 | 10 33 8 20 . . . 28 Explosive 34 | . . . 8 6 . 13 7 Electromagnetic 1 | . . . . . . . 1 Robot Hit Streak 13 | 4 13 5 7 3 . 7 12 Robot Miss Streak 6 | 1 3 4 6 1 . 3 2 Penetration Max . | . . . . . . . . Secondary Targets 2 | . 1 1 . . . . . Max Gunslinging Chain 1 | . 1 1 . . . . . Shots Hit Robots 209 | 13 46 7 41 7 . 55 40 Core Hits 97 | 3 17 3 12 9 . 29 24 Critical Kills . | . . . . . . . . Critical Parts Destroyed 2 | 1 . . 1 . . . . Critical Strikes 11 | 2 3 . 1 . . 1 4 Burn 8 | 1 3 . . . . . 4 Destroy 2 | 1 . . 1 . . . . Blast 1 | . . . . . . 1 . Melee Attacks . | . . . . . . . . Impact . | . . . . . . . . Slashing . | . . . . . . . . Piercing . | . . . . . . . . Sneak Attacks . | . . . . . . . . Combat Hostiles . | . . . . . . . . Follow-up Attacks . | . . . . . . . . Damage Inflicted 4560 | 157 585 91 704 437 . 1240 1346 Guns 1895 | 157 585 91 411 6 . 277 368 Cannons 327 | . . . . . . 327 . Explosions 2077 | . . . 293 431 . 636 717 Melee . | . . . . . . . . Ramming 2 | . . . . . . . 2 Kinetic 1637 | 70 309 41 251 6 . 604 356 Thermal 832 | 87 276 50 160 . . . 259 Explosive 2077 | . . . 293 431 . 636 717 Electromagnetic 12 | . . . . . . . 12 Impact . | . . . . . . . . Slashing . | . . . . . . . . Piercing . | . . . . . . . . Highest Corruption 16 | . . . . . . . 16 Average Corruption 2 | . . . . . . . 2 Corruption Purged . | . . . . . . . . Corruption Blocked . | . . . . . . . . Effects 11 | . . . . . . . 11 Message Errors 3 | . . . . . . . 3 Matter Fused 2 | . . . . . . . 2 Heat Flow Errors 1 | . . . . . . . 1 Data Loss (minor) 1 | . . . . . . . 1 Alerts 1 | . . . . . . . 1 Misdirections 2 | . . . . . . . 2 Weapon Failures 1 | . . . . . . . 1 Overload Shots . | . . . . . . . . Overflow Damage 87 | . . . 12 19 . 22 34 Projectiles 22 | . . . . . . . 22 Explosions 65 | . . . 12 19 . 22 12 Melee . | . . . . . . . . Knockbacks . | . . . . . . . . Impact . | . . . . . . . . Kinetic . | . . . . . . . . Secondary . | . . . . . . . . Self-Inflicted Damage 268 | . . . 123 . . 51 94 Shots 6 | . . . 3 . . 1 2 Rammed 1 | . . . . . . . 1 Targets Rammed 1 | . . . . . . . 1 Kicked . | . . . . . . . . Crushed . | . . . . . . . . Highest Temperature 409 | 27 140 54 117 67 . 133 409 Average Temperature 98 | 12 54 26 48 27 . 34 176 Received Heat Transfer 1232 | . 135 18 156 78 . 591 254 Effects 9 | . . . . . . . 9 Shutdowns 2 | . . . . . . . 2 Energy Bleed 1 | . . . . . . . 1 Interference 6 | . . . . . . . 6 Siege Activations . | . . . . . . . . Martial Activations . | . . . . . . . . Shielding Activations . | . . . . . . . . Robots Disrupted 1 | . . . . . . . 1 Combat Hostiles 1 | . . . . . . . 1 Robots Corrupted . | . . . . . . . . Combat Hostiles . | . . . . . . . . Parts Fried . | . . . . . . . . Impact Corruptions . | . . . . . . . . Robots Melted 1 | . . . . . . . 1 Combat Hostiles 1 | . . . . . . . 1 Parts Melted 6 | . 4 . . . . . 2 Heat Transferred 4158 | 333 1036 148 481 . . . 2160 Parts Sabotaged . | . . . . . . . . Parts Stolen . | . . . . . . . . Parts Stripped . | . . . . . . . . Power Chain Reactions . | . . . . . . . . Alert | -11 -10 -10 -9 -9 -7 -6 -6 ------- Run | Yrd Mat Min Mat Min Zio Pro Fac Maximum Alert Level 2 | . . . . . . . 2 Low Security (%) 80 | 100 100 100 100 100 . . 41 Level 1 16 | . . . . . . . 49 Level 2 3 | . . . . . . . 9 Level 3 . | . . . . . . . . Level 4 . | . . . . . . . . Level 5 . | . . . . . . . . High Security . | . . . . . . . . Max Security . | . . . . . . . . Peak Influence 450 | 10 62 60 75 122 . . 450 Initial 450 | . . 3 . 19 . . 450 Average 91 | . 13 9 30 43 . . 234 Influence Increases 1924 | 15 253 70 235 132 . 393 826 Destroy 0b10 Robot/C 940 | . 180 60 140 80 . 280 200 Destroy 0b10 Robot/NC 35 | 15 10 . . . . 5 5 Destroy Leader 182 | . 32 10 40 20 . 30 50 Allied During Kill 48 | . . . . . . 48 . Successful Hack 22 | . 15 . 5 . . . 2 Disable Machine 30 | . . . 15 . . . 15 Destroy Structure 97 | . 1 . 20 32 . . 44 Advance Influence 450 | . . . . . . . 450 Partial Spotted 15 | . 15 . . . . . . Lose Combat Pursuer 105 | . . . 15 . . 30 60 Influence Decreases 1748 | 15 244 79 184 183 . 393 650 Entered New Map 38 | . . 6 . 32 . . . Time Decay 1387 | 15 234 73 124 151 . 300 490 Lost Part 297 | . 10 . 60 . . 67 160 Lost Ally 26 | . . . . . . 26 . Squads Dispatched 10 | . 1 . 1 1 . . 7 Investigation 1 | . 1 . . . . . . Extermination 2 | . . . . . . . 2 Reinforcement 2 | . . . 1 1 . . . Assault . | . . . . . . . . Garrison 5 | . . . . . . . 5 Intercept . | . . . . . . . . Searches Triggered . | . . . . . . . . Construction Impeded 1 | . . . . 1 . . . Haulers Reinforced . | . . . . . . . . Active Scanning Responses . | . . . . . . . . Cargo Convoy Interrupts . | . . . . . . . . Stealth | -11 -10 -10 -9 -9 -7 -6 -6 --------- Run | Yrd Mat Min Mat Min Zio Pro Fac Distress Signals 1 | . 1 . . . . . . Communications Jammed . | . . . . . . . . Distress Signals . | . . . . . . . . Times Spotted 78 | . 19 8 9 3 . 17 22 Peak Tracking Total 10 | . 5 3 4 3 . 7 10 Tactical Retreats 7 | . . . 1 . . 2 4 Traps | -11 -10 -10 -9 -9 -7 -6 -6 ------- Run | Yrd Mat Min Mat Min Zio Pro Fac Traps Triggered 1 | . . . . . . . 1 Indirectly . | . . . . . . . . Trap Hack Attempts . | . . . . . . . . Triggered . | . . . . . . . . Disarmed . | . . . . . . . . Reprogrammed . | . . . . . . . . Reused . | . . . . . . . . Traps Extracted . | . . . . . . . . Installed . | . . . . . . . . Triggered . | . . . . . . . . Machines | -11 -10 -10 -9 -9 -7 -6 -6 ---------- Run | Yrd Mat Min Mat Min Zio Pro Fac Machines Disabled 2 | . . . 1 . . . 1 Max in Single Turn 1 | . . . 1 . . . 1 Machines Repaired . | . . . . . . . . Machines Dismantled . | . . . . . . . . Machines Sabotaged . | . . . . . . . . Overloaded Fab Kills . | . . . . . . . . Hacking | -11 -10 -10 -9 -9 -7 -6 -6 --------- Run | Yrd Mat Min Mat Min Zio Pro Fac Machines Accessed 9 | . 5 . 2 . . 1 1 Terminals 6 | . 3 . 2 . . 1 . Fabricators . | . . . . . . . . Repair Stations 1 | . 1 . . . . . . Recycling Units 1 | . 1 . . . . . . Scanalyzers 1 | . . . . . . . 1 Garrison Access . | . . . . . . . . Total Hacks 27 | . 12 . 2 . . 6 7 Successful 18 | . 7 . 1 . . 6 4 Failed 9 | . 5 . 1 . . . 3 Catastrophic 3 | . 2 . 1 . . . . Database Lockouts . | . . . . . . . . Manual 5 | . 4 . 1 . . . . Terminals 12 | . 4 . 2 . . 6 . Fabricators . | . . . . . . . . Repair Stations 7 | . 7 . . . . . . Recycling Units 1 | . 1 . . . . . . Scanalyzers 7 | . . . . . . . 7 Garrison Access . | . . . . . . . . Terminal Hacks 9 | . 2 . 1 . . 6 . Record 6 | . . . . . . 6 . Robot Analysis 1 | . . . 1 . . . . Branch Access Points 1 | . 1 . . . . . . Locate Traps 1 | . 1 . . . . . . Fabricator Hacks . | . . . . . . . . Repair Station Hacks 5 | . 5 . . . . . . Scan Component 3 | . 3 . . . . . . Repair 2 | . 2 . . . . . . Recycling Unit Hacks . | . . . . . . . . Scanalyzer 4 | . . . . . . . 4 Insert Component 1 | . . . . . . . 1 Analyze 3 | . . . . . . . 3 Garrison Access Hacks . | . . . . . . . . Unauthorized Hacks . | . . . . . . . . Terminals . | . . . . . . . . Fabricators . | . . . . . . . . Repair Stations . | . . . . . . . . Recycling Units . | . . . . . . . . Scanalyzers . | . . . . . . . . Garrison Access . | . . . . . . . . Data Cores Recovered 1 | . 1 . . . . . . Used 1 | . 1 . . . . . . Hacking Detections 6 | . 3 . 2 . . . 1 Full Trace Events 1 | . 1 . . . . . . Feedback Events . | . . . . . . . . Feedback Blocked . | . . . . . . . . Robot Schematics Acquired . | . . . . . . . . Robots Built . | . . . . . . . . Authchips . | . . . . . . . . Time . | . . . . . . . . Total Robot Build Rating . | . . . . . . . . Part Schematics Acquired 2 | . . . . . 2 . . Parts Built . | . . . . . . . . Authchips . | . . . . . . . . Time . | . . . . . . . . Total Part Build Rating . | . . . . . . . . Parts Repaired 2 | . 2 . . . . . . Time 52 | . 52 . . . . . . Parts Recycled . | . . . . . . . . Recycled Matter . | . . . . . . . . Retrieved Matter . | . . . . . . . . Retrieved Components . | . . . . . . . . Parts Scanalyzed 1 | . . . . . . . 1 Part Schematics Acquired . | . . . . . . . . Parts Damaged . | . . . . . . . . Bothacking | -11 -10 -10 -9 -9 -7 -6 -6 ------------ Run | Yrd Mat Min Mat Min Zio Pro Fac Used RIF Installer . | . . . . . . . . Robots Hacked . | . . . . . . . . Non-combat . | . . . . . . . . Combat . | . . . . . . . . Robot Hacks Applied . | . . . . . . . . Relay Couplers Released . | . . . . . . . . Fabnet Peak Effective % . | . . . . . . . . Robots Rewired . | . . . . . . . . Allies Hacked . | . . . . . . . . Hacks Repelled . | . . . . . . . . Allies | -11 -10 -10 -9 -9 -7 -6 -6 -------- Run | Yrd Mat Min Mat Min Zio Pro Fac Total Allies 7 | . . 3 . . 4 . . Largest Group 4 | . . 3 . . 4 4 . Highest-Rated Group 155 | . . 40 . . 155 155 . Highest-Rated Ally 39 | . . 16 . . 39 39 . Total Orders . | . . . . . . . . Ally Attacks 53 | . . 22 . . . 31 . Total Damage 852 | . . 207 . . . 645 . Kills 10 | . . 3 . . . 7 . Allies Corrupted . | . . . . . . . . Allies Melted . | . . . . . . . . Intel | -11 -10 -10 -9 -9 -7 -6 -6 ------- Run | Yrd Mat Min Mat Min Zio Pro Fac Active Infowar (turns) 6762 | 11 1057 444 457 405 2468 1030 890 Sensors 4623 | . . . 378 405 2468 544 828 Seismic 5872 | 11 1057 444 457 405 2468 1030 . Decoding 211 | . . . . . . . 211 Robot Analysis Total 1 | . . . 1 . . . . Derelict Logs Recovered 2 | . . 2 . . . . . Drone Launches . | . . . . . . . . Drone Recoveries . | . . . . . . . . Decoded 0b10 Intel 4 | . . . . . . . 4 Traps 1 | . . . . . . . 1 Items 2 | . . . . . . . 2 Patrols 1 | . . . . . . . 1 Exploration | -11 -10 -10 -9 -9 -7 -6 -6 ------------- Run | Yrd Mat Min Mat Min Zio Pro Fac Turns Passed 7580 | 190 1057 444 457 405 2468 1278 1281 Spaces Moved 4221 | 94 491 257 208 239 1525 683 724 Core 69 | 5 . . . . . . 64 Treads 4152 | 89 491 257 208 239 1525 683 660 Legs . | . . . . . . . . Wheels . | . . . . . . . . Hover . | . . . . . . . . Flight . | . . . . . . . . Fastest Speed 50 | 50 160 160 160 160 160 160 50 Average Speed 159 | 154 160 160 160 160 160 162 152 Slowest Speed 165 | 160 160 160 160 160 160 165 165 Overloaded Moves . | . . . . . . . . Propulsion Burnouts . | . . . . . . . . Robots Hopped . | . . . . . . . . Potential Cave-ins . | . . . . . . . . Cave-ins Triggered . | . . . . . . . . Exploration Rate (%) 51 | 6 71 70 25 61 90 72 15 Regions Visited 7 Branch Regions 4 Pre-discovered Areas 1 | . . . . . 1 . . Known Exits Taken 3 | . 1 . 1 . . 1 . Unknown Exits Taken 4 | 1 . 1 . 1 1 . . Scrap Searched 6 | . . 1 . . 2 3 . Spaces Dug . | . . . . . . . . Terrain Destroyed 200 | . . . 19 45 . 93 43 Melee . | . . . . . . . . Projectile 2 | . . . . . . 1 1 AOE 198 | . . . 19 45 . 92 42 Terrain Rammed . | . . . . . . . . Walls Destroyed . | . . . . . . . . Machines Disabled . | . . . . . . . . Actions | -11 -10 -10 -9 -9 -7 -6 -6 --------- Run | Yrd Mat Min Mat Min Zio Pro Fac Total 4780 | 116 695 274 271 250 1555 781 838 Wait 278 | . 154 8 15 4 19 28 50 Move 4214 | 93 490 256 207 238 1524 682 724 Hop . | . . . . . . . . Pick Up 39 | 6 6 2 5 1 8 7 4 Fast Attach 18 | 7 3 . 1 . . 3 4 Attach 24 | . 1 . 7 . . 7 9 Detach 2 | . . . . . . 1 1 Swap 18 | . 3 . 4 1 . 3 7 Drop 11 | . 4 . . . 4 3 . Fire 175 | 10 34 8 32 6 . 47 38 Melee . | . . . . . . . . Ram 1 | . . . . . . . 1 Kick . | . . . . . . . . Crush . | . . . . . . . . Escape Stasis . | . . . . . . . . Rewire . | . . . . . . . . Trap . | . . . . . . . . Miscellaneous . | . . . . . . . . Route ------- -11/Scrapyard -10/Materials (discovered 2 exits: *Mat / *Min) -10/Mines (discovered 2 exits: *Mat x2) -9/Materials (discovered 2 exits: *Min x2) -9/Mines (discovered 2 exits: [*Mat] / *Zio) -7/Zion -6/Proximity Caves -6/Factory History --------- Turn | Location | Event 12 | -11/Scrapyard | Discovered new exit (range 15) 191 | -11/Scrapyard | Entered Materials 315 | -10/Materials | Build established: Mutant 469 | -10/Materials | Identified exit to Mines 846 | -10/Materials | Discovered new exit (range 16) 1077 | -10/Materials | Repaired Lgt. Treads 1104 | -10/Materials | Repaired Lgt. Treads 1248 | -10/Materials | Entered Mines 1255 | -10/Mines | Received a Rocket Launcher from a helpful Derelict 1363 | -10/Mines | Discovered new exit (range 6) 1425 | -10/Mines | Learned Materials emergency access door positions 1425 | -10/Mines | Assisted by bots powering up and referring to "LRC-V3" 1472 | -10/Mines | Assembled infested the area 1477 | -10/Mines | Assisted by a Guerilla fighting off Assembled 1527 | -10/Mines | Found a damaged Exp. Sensor Array with a note attached 1530 | -10/Mines | Found Prototype Device 1533 | -10/Mines | Lost 3 allies 1665 | -10/Mines | Discovered new exit (range 6) 1692 | -10/Mines | Entered Materials 1692 | -9/Materials | Evolved 2 slots: Utility x2 1693 | -9/Materials | Identified exit to Mines 2141 | -9/Materials | Lost 5 parts (1p1n1u2w) 2149 | -9/Materials | Entered Mines 2169 | -9/Mines | A weapon hastily lodged in a ceiling crevice suddenly fell to the ground 2226 | -9/Mines | Discovered new exit (range 10) 2534 | -9/Mines | A Derelict revealed a hidden shortcut to a safe place 2554 | -9/Mines | Entered Zion 3054 | -7/Zion | Acquired unknown access codes intercepted by a Zionite 3080 | -7/Zion | Learned location of Warlord (-5) 3722 | -7/Zion | Met Imprinter 3874 | -7/Zion | Imprinted 3876 | -7/Zion | Declared Zion's savior 4275 | -7/Zion | Given the Hacking Drone Bay 4991 | -7/Zion | Discovered new exit (range 15) 5022 | -7/Zion | Entered Proximity Caves 5022 | -6/Proximity Caves | Accompanied by 4 allies 5416 | -6/Proximity Caves | Spotter reported a threat 5469 | -6/Proximity Caves | Spotter reported a threat 5544 | -6/Proximity Caves | Attracted the attention of an 0b10 base 5589 | -6/Proximity Caves | Lost 4 allies 5596 | -6/Proximity Caves | Core integrity fell below 50% 5610 | -6/Proximity Caves | Lost 5 parts (1p1n2u1w) 5713 | -6/Proximity Caves | Learned Armory stockpile data 5713 | -6/Proximity Caves | Learned Factory security intel 5810 | -6/Proximity Caves | Core integrity fell below 20% 5911 | -6/Proximity Caves | Spotter reported a threat 5976 | -6/Proximity Caves | Build established: Scavenger-Mutant 6042 | -6/Proximity Caves | Attracted the attention of an 0b10 checkpoint 6285 | -6/Proximity Caves | Discovered new exit (range 6) 6298 | -6/Proximity Caves | Identified exit to Factory 6300 | -6/Proximity Caves | Entered Factory 6300 | -6/Factory | Evolved 6 slots: Power x1, Propulsion x2, Utility x2, Weapon x1 6621 | -6/Factory | Build established: Derelict-Tank 6642 | -6/Factory | Identified Exp. Sensor Array 7273 | -6/Factory | Garrison activated, responded to threat 7393 | -6/Factory | Garrison activated, responded to threat 7469 | -6/Factory | Lost 3 parts (1n2w) 7533 | -6/Factory | System corruption reached 10% 7541 | -6/Factory | Released all parts (2) 7549 | -6/Factory | Core integrity fell below 50% 7572 | -6/Factory | Lost 13 parts (2p4n4u3w) 7573 | -6/Factory | Core integrity fell below 20% 7581 | -6/Factory | Destroyed by Y-54 Guardian with Gatling Laser Last Messages --------------- 07536_ U-05 Engineer lays Concrete. 07537_ K-01 Serf collects debris. 07538_ U-05 Engineer lays Concrete. 07539_ Med. Treads destroyed. 07539_ U-05 Engineer lays Concrete. 07541_ Med. Treads destroyed. 07541_ U-05 Engineer lays Concrete. 07541_ Released Weapon Cycler. 07541_ Released Lrg. Storage Unit. 07542_ QOXXQFT#UGR H7&OD/H7 K6SPAAHXX%VJK 07542_ U-05 Engineer lays Concrete. 07542_ M-13 Machinist repairs S-27 Virus. 07543_ K-01 Serf collects debris. 07548_ S-27 Virus destroyed. 07558_ Acquired Imp. Signal Interpreter. 07572_ Acquired Focal Shield. 07573_ Slammed into S-27 Virus. 07576_ Acquired Nuclear Core. 07579_ M-13 Machinist repairs Y-54 Guardian. 07581_ NLYYIU303BF>BBKCTITPAOUGC8EYY